bitfinex/quotes_SOLUSD_20241210
["timestamp","ask_amount","ask_price","bid_price","bid_amount"]
[1733869287974,0.12549,213.18,213.07,6.0514]
[1733869288207,0.12549,213.18,213.05,2.2074074]
[1733869288375,0.12549,213.18,213.05,13.9434074]
[1733869290488,0.12549,213.18,213.07,312.0]
[1733869291783,0.12549,213.14,213.02,6.1116]
[1733869292208,0.12549,213.1,213.0,1.5884]
[1733869292710,24.153354,213.07,212.98,0.70391202]
[1733869292901,24.153354,213.07,212.96,6.1116]
[1733869293409,24.153354,213.07,212.95,1.6563]
[1733869294910,24.153354,213.07,212.97,312.0]
[1733869295598,0.37647,213.07,212.96,14.55523714]
[1733869295902,0.37647,213.07,212.97,14.55523714]
[1733869296704,0.37647,213.07,212.98,14.55523714]
[1733869296890,0.12549,213.07,212.99,14.55523714]
[1733869297280,3.42074921,213.15,213.0,14.55523714]
[1733869297281,1.5459,213.15,213.0,14.55523714]
[1733869297490,1.5459,213.15,213.01,34.55523714]
[1733869297796,1.5459,213.15,213.02,14.55523714]
[1733869298179,0.25098,213.14,213.02,14.55523714]
[1733869298610,24.027864,213.14,213.05,312.0]
[1733869299607,0.25098,213.14,213.05,312.0]
[1733869300105,0.12549,213.13,213.05,312.0]
[1733869300611,0.12549,213.13,213.03,20.0]
[1733869300810,0.12549,213.13,213.03,20.7038221]
[1733869303615,0.12549,213.13,213.07,312.0]
[1733869304011,0.12549,213.13,213.03,20.0]
[1733869304205,0.12549,213.13,213.04,0.70379926]
[1733869304911,0.25098,213.14,213.04,0.70379926]
[1733869305096,0.25098,213.14,213.04,15.2590364]
[1733869305490,6.5569,213.18,213.07,20.0]
[1733869306106,0.25098,213.17,213.07,20.0]
[1733869306303,0.12549,213.17,213.07,20.0]
[1733869306716,0.25098,213.17,213.07,20.0]
[1733869307102,0.12549,213.16,213.12,312.0]
[1733869307419,6.5569,213.23,213.13,0.70365662]
[1733869308212,0.12549,213.22,213.13,0.70365662]
[1733869308416,0.12549,213.22,213.12,0.70347668]
[1733869308920,0.12549,213.24,213.12,15.25871382]
[1733869309612,0.25098,213.24,213.15,20.0]
[1733869310198,0.25098,213.23,213.15,20.0]
[1733869310389,0.12549,213.23,213.16,15.25867144]
[1733869310594,1.5975,213.25,213.18,312.0]
[1733869311233,0.12549,213.28,213.18,312.0]
[1733869311516,6.5569,213.29,213.16,14.55523714]
[1733869311817,0.12549,213.28,213.17,14.55523714]
[1733869312015,0.12549,213.28,213.16,0.70331169]
[1733869312215,0.25098,213.28,213.16,15.25854883]
[1733869312600,0.25098,213.27,213.16,15.25854883]
[1733869312798,0.25098,213.25,213.16,15.25854883]
[1733869313003,0.25098,213.25,213.17,14.55523714]
[1733869313219,0.25098,213.25,213.18,0.7033304]
[1733869313731,0.25098,213.27,213.18,0.7033304]
[1733869314040,0.12549,213.27,213.18,0.7033304]
[1733869314405,0.12549,213.28,213.21,312.0]
[1733869314897,1.5975,213.3,213.18,14.55523714]
[1733869315401,1.5975,213.3,213.2,14.55523714]
[1733869315613,0.12549,213.29,213.19,14.55523714]
[1733869316013,0.25098,213.29,213.19,14.55523714]
[1733869316710,0.25098,213.29,213.2,0.70325364]
[1733869317321,0.25098,213.29,213.2,9.99596766]
[1733869317523,0.25098,213.29,213.2,0.70325364]
[1733869317901,0.25098,213.29,213.25,312.0]
[1733869320721,0.12549,213.29,213.25,312.0]
[1733869321924,0.12549,213.31,213.25,312.0]
[1733869322125,0.25098,213.31,213.25,312.0]
[1733869322621,0.12549,213.31,213.25,312.0]
[1733869322815,0.12549,213.33,213.25,312.0]
[1733869323527,0.12549,213.33,213.23,9.29271402]
[1733869323720,0.12549,213.33,213.24,0.70310176]
[1733869324339,1.5396,213.35,213.28,9.29271402]
[1733869324546,7.9896,213.4,213.27,9.29271402]
[1733869325239,0.25098,213.39,213.27,9.29271402]
[1733869326141,0.12549,213.38,213.27,9.29271402]
[1733869326522,0.12549,213.38,213.31,312.0]
[1733869327712,7.9896,213.4,213.31,312.0]
[1733869328033,1.5396,213.4,213.3,9.29271402]
[1733869328244,7.9896,213.45,213.3,9.99560899]
[1733869328407,7.9896,213.45,213.31,9.29271402]
[1733869328606,0.25098,213.44,213.31,9.29271402]
[1733869328801,7.9896,213.45,213.33,9.29271402]
[1733869329008,7.9896,213.45,213.34,9.29271402]
[1733869329227,0.25098,213.44,213.34,9.29271402]
[1733869329509,7.9896,213.45,213.34,9.9955034]
[1733869330816,1.5396,213.45,213.38,312.0]
[1733869331538,0.12549,213.44,213.38,312.0]
[1733869333026,0.12549,213.44,213.36,9.29271402]
[1733869333233,0.12549,213.44,213.37,0.70268573]
[1733869334553,0.12549,213.44,213.32,20.0]
[1733869334554,24.153354,213.44,213.32,20.0]
[1733869334729,24.153354,213.44,213.31,9.99540018]
[1733869335921,24.153354,213.44,213.32,9.29271402]
[1733869336118,24.153354,213.44,213.34,312.0]
[1733869338852,24.153354,213.44,213.34,321.29271402]
[1733869339048,24.153354,213.44,213.34,9.29271402]
[1733869339953,24.153354,213.44,213.33,9.29271402]
[1733869341976,24.153354,213.44,213.36,312.0]
[1733869342347,24.153354,213.44,213.33,9.29271402]
[1733869342551,24.153354,213.44,213.33,9.99553167]
[1733869342754,24.153354,213.44,213.35,9.29271402]
[1733869343069,24.027864,213.44,213.35,9.29271402]
[1733869344442,0.25098,213.43,213.34,9.29271402]
[1733869344642,24.027864,213.44,213.33,0.70281765]
[1733869344643,0.25098,213.4,213.33,0.70281765]
[1733869345271,0.12549,213.4,213.35,312.0]
[1733869345582,0.12549,213.42,213.35,312.0]
[1733869349465,0.12549,213.42,213.36,0.70282369]
[1733869349661,1.5396,213.45,213.36,0.70282369]
[1733869349853,1.5396,213.45,213.38,9.29271402]
[1733869350371,0.25098,213.44,213.37,9.29271402]
[1733869351155,0.12549,213.43,213.37,9.29271402]
[1733869351665,0.12549,213.43,213.38,0.70269085]
[1733869352369,0.12549,213.43,213.42,312.0]
[1733869352748,8.0415,213.5,213.42,312.0]
[1733869352978,0.12549,213.48,213.42,312.0]
[1733869353277,0.37647,213.48,213.42,312.0]
[1733869353462,0.25098,213.48,213.42,312.0]
[1733869353970,15.0,213.59,213.42,312.0]
[1733869353971,7.7687,213.55,213.43,0.70262107]
[1733869354350,0.25098,213.54,213.43,9.99533509]
[1733869354564,0.12549,213.54,213.44,9.29271402]
[1733869354746,7.7687,213.55,213.45,0.70244386]
[1733869355355,0.25098,213.54,213.45,0.70244386]
[1733869355756,7.7687,213.55,213.46,9.29271402]
[1733869355757,1.5915,213.55,213.46,9.29271402]
[1733869356066,1.5915,213.55,213.47,0.70235495]
[1733869356777,7.7687,213.6,213.47,0.70235495]
[1733869356957,20.0,213.57,213.5,312.0]
[1733869357472,0.12549,213.55,213.5,312.0]
[1733869358050,7.7687,213.6,213.51,0.70229301]
[1733869358252,23.776884,213.59,213.49,20.0]
[1733869358456,23.776884,213.59,213.49,20.70228088]
[1733869358872,0.12549,213.58,213.49,20.70228088]
[1733869359755,0.25098,213.57,213.49,20.70228088]
[1733869360682,0.37647,213.58,213.49,29.9949949]
[1733869361056,0.37647,213.58,213.53,312.0]
[1733869361958,0.37647,213.58,213.51,9.29271402]
[1733869362167,0.37647,213.58,213.49,20.0]
[1733869362168,0.12549,213.6,213.53,20.0]
[1733869362479,0.12549,213.6,213.52,9.99491946]
[1733869362882,0.37647,213.6,213.52,9.99491946]
[1733869363871,0.37647,213.6,213.53,29.29271402]
[1733869364067,0.37647,213.6,213.54,9.9948482]
[1733869364962,0.37647,213.6,213.58,312.0]
[1733869365170,0.12549,213.6,213.58,312.0]
[1733869365482,0.5550767,213.61,213.58,312.0]
[1733869367387,0.5550767,213.61,213.59,0.7019843]
[1733869368069,0.5550767,213.61,213.6,20.0]
[1733869368477,0.5550767,213.61,213.6,9.29271402]
[1733869369385,0.5550767,213.61,213.6,9.99458816]
[1733869369563,0.5550767,213.61,213.6,21.69868816]
[1733869370490,0.5550767,213.61,213.6,333.69868816]
[1733869370780,0.5550767,213.61,213.6,332.99681402]
[1733869371297,0.5550767,213.61,213.6,312.0]
[1733869371474,0.5550767,213.61,213.6,321.29271402]
[1733869401378,7.67e-05,213.61,213.6,345.06959802]
[1733869405017,7.67e-05,213.61,213.6,312.0]
[1733869405185,7.67e-05,213.61,213.6,321.29271402]
[1733869413714,7.67e-05,213.61,213.6,324.07648605]
[1733869415908,7.67e-05,213.61,213.6,361.24734213]
[1733869416301,1.6581,213.75,213.6,361.24734213]
[1733869416302,0.12549,213.74,213.64,20.0]
[1733869416489,0.12549,213.74,213.69,9.29271402]
[1733869417201,0.37647,213.74,213.68,9.29271402]
[1733869419527,0.37647,213.74,213.69,312.0]
[1733869420198,0.37647,213.74,213.69,321.29271402]
[1733869420414,0.37647,213.74,213.69,312.0]
[1733869420621,0.37647,213.74,213.69,321.29271402]
[1733869420834,0.37647,213.74,213.7,9.29271402]
[1733869424230,0.25098,213.74,213.71,9.29271402]
[1733869424817,0.25098,213.74,213.7,312.0]
[1733869424818,0.25098,213.74,213.72,9.29271402]
[1733869425318,1.62979,213.81,213.72,9.29271402]
[1733869425521,23.776884,213.8,213.72,9.29271402]
[1733869425739,0.37647,213.79,213.72,9.29271402]
[1733869426723,1.5043,213.81,213.73,9.29271402]
[1733869426914,1.5043,213.81,213.75,9.29271402]
[1733869427348,0.25098,213.8,213.75,9.29271402]
[1733869428029,0.25098,213.8,213.76,9.29271402]
[1733869428343,0.12549,213.79,213.76,9.29271402]
[1733869428843,1.5043,213.81,213.76,9.29271402]
[1733869429353,0.12549,213.8,213.76,9.29271402]
[1733869429524,0.5550767,213.82,213.78,9.29271402]
[1733869430039,0.5550767,213.82,213.78,321.29271402]
[1733869430551,0.5550767,213.82,213.8,9.29271402]
[1733869431561,0.5550767,213.82,213.81,9.29271402]
[1733869432662,0.5550767,213.82,213.81,9.9939205]
[1733869433871,0.5550767,213.82,213.81,321.9939205]
[1733869434059,0.5550767,213.82,213.81,321.29271402]
[1733869434242,7.67e-05,213.82,213.81,345.06959802]
[1733869435248,7.67e-05,213.82,213.81,361.68189802]
[1733869439180,7.67e-05,213.82,213.81,322.90501402]
[1733869439873,7.67e-05,213.82,213.81,313.6123]
[1733869440053,7.67e-05,213.82,213.81,322.90501402]
[1733869440366,7.67e-05,213.82,213.81,321.29271402]
[1733869443868,7.67e-05,213.82,213.81,312.0]
[1733869444066,7.67e-05,213.82,213.8,9.29271402]
[1733869444388,7.67e-05,213.82,213.79,9.29271402]
[1733869444552,7.67e-05,213.82,213.8,9.29271402]
[1733869445282,7.67e-05,213.82,213.81,9.29271402]
[1733869447085,7.67e-05,213.82,213.81,321.29271402]
[1733869448494,7.67e-05,213.82,213.81,312.0]
[1733869450186,7.67e-05,213.82,213.76,1.6089]
[1733869450494,7.67e-05,213.82,213.79,11.16530802]
[1733869450999,7.67e-05,213.82,213.77,20.70141217]
[1733869451163,7.67e-05,213.82,213.78,11.16545302]
[1733869451896,7.67e-05,213.82,213.78,1.872739]
[1733869453284,7.67e-05,213.82,213.78,313.872739]
[1733869456089,7.67e-05,213.82,213.78,323.16545302]
[1733869457264,0.37647,213.81,213.78,312.0]
[1733869458785,0.37647,213.81,213.72,20.0]
[1733869458988,0.37647,213.81,213.74,9.29271402]
[1733869459187,0.37647,213.81,213.74,28.02272102]
[1733869459895,0.37647,213.81,213.75,9.29271402]
[1733869461889,0.37647,213.81,213.77,9.29271402]
[1733869462083,0.37647,213.81,213.78,9.29271402]
[1733869463171,0.37647,213.81,213.73,19.4320346]
[1733869463371,0.37647,213.81,213.77,9.29271402]
[1733869465294,0.37647,213.81,213.78,312.0]
[1733869466714,0.37647,213.81,213.77,9.29271402]
[1733869467006,7.67e-05,213.82,213.77,9.29271402]
[1733869468879,7.67e-05,213.82,213.78,0.70140357]
[1733869469682,7.67e-05,213.82,213.8,312.0]
[1733869472279,7.67e-05,213.82,213.79,9.29271402]
[1733869472916,7.67e-05,213.82,213.81,29.29271402]
[1733869475326,7.67e-05,213.82,213.81,341.29271402]
[1733869477615,0.12549,213.96,213.82,11.692]
[1733869477948,0.12549,213.97,213.86,9.29271402]
[1733869479847,0.12549,213.98,213.87,9.99381804]
[1733869480007,0.12549,213.98,213.88,9.29271402]
[1733869480212,6.0891567,213.99,213.88,9.29271402]
[1733869480508,20.0,214.01,213.88,9.29271402]
[1733869480746,0.25098,214.0,213.88,9.29271402]
[1733869480915,0.12549,214.0,213.89,0.7009962]
[1733869481233,0.12549,214.0,213.89,312.7009962]
[1733869481433,0.25098,213.98,213.89,312.0]
[1733869481812,0.25098,213.98,213.88,9.29271402]
[1733869482026,0.25098,213.98,213.89,0.70097519]
[1733869483338,0.25098,213.98,213.89,9.99368921]
[1733869484037,23.902374,213.99,213.89,9.99368921]
[1733869484431,23.902374,213.99,213.89,0.70097519]
[1733869484812,0.25098,213.98,213.91,312.0]
[1733869486147,0.12549,213.97,213.91,312.0]
[1733869486311,0.12549,213.97,213.89,20.0]
[1733869489425,0.12549,213.97,213.89,332.0]
[1733869490418,0.12549,213.97,213.9,0.70100525]
[1733869490617,0.12549,213.98,213.9,20.70100525]
[1733869490816,0.8202767,214.03,213.9,20.70100525]
[1733869490817,23.776884,214.0,213.9,20.70100525]
[1733869491543,0.12549,214.0,213.9,20.70100525]
[1733869492055,24.153354,214.0,213.9,20.70100525]
[1733869493751,23.902374,214.0,213.92,312.0]
[1733869495840,23.902374,214.0,213.91,9.29271402]
[1733869496546,23.902374,214.0,213.91,22.54261402]
[1733869496746,23.902374,214.0,213.91,13.2499]
[1733869497128,23.902374,214.0,213.91,22.54261402]
[1733869497449,23.902374,214.02,213.92,9.99365492]
[1733869498669,23.902374,214.02,213.93,9.29271402]
[1733869498953,23.902374,214.02,213.96,312.0]
[1733869500532,23.902374,214.02,213.92,9.29271402]
[1733869501433,0.5550767,214.03,213.94,9.29271402]
[1733869501632,0.5550767,214.03,214.01,9.29271402]
[1733869501855,0.5550767,214.03,214.0,9.29271402]
[1733869502054,0.5550767,214.03,213.98,9.99338721]
[1733869502354,0.5550767,214.03,213.99,9.29271402]
[1733869502538,0.5550767,214.03,214.0,9.29271402]
[1733869503444,0.5550767,214.03,214.02,312.0]
[1733869505961,0.5550767,214.03,214.02,321.29271402]
[1733869506866,0.5550767,214.03,214.02,312.0]
[1733869508657,0.5550767,214.03,213.98,9.29271402]
[1733869509035,0.5550767,214.03,213.99,9.29271402]
[1733869509865,0.5550767,214.03,213.98,9.29271402]
[1733869510363,0.5550767,214.03,214.0,9.29271402]
[1733869510694,0.5550767,214.03,214.01,9.29271402]
[1733869511467,0.5550767,214.03,213.98,0.70073512]
[1733869511468,0.5550767,214.03,214.02,9.29271402]
[1733869511666,0.5550767,214.03,214.02,321.29271402]
[1733869515752,0.5550767,214.03,214.02,329.16571402]
[1733869517042,0.5550767,214.03,214.02,313.6102]
[1733869517661,0.5550767,214.03,214.02,322.90291402]
[1733869523579,0.5550767,214.03,214.02,325.6485599]
[1733869524666,0.5550767,214.03,214.02,349.4254439]
[1733869528060,7.67e-05,214.03,214.02,349.8019139]
[1733869529163,7.67e-05,214.03,214.02,364.8019139]
[1733869529980,7.67e-05,214.03,214.02,356.19984028]
[1733869530186,7.67e-05,214.03,214.02,371.19984028]
[1733869530388,7.67e-05,214.03,214.02,347.04648628]
[1733869531086,7.67e-05,214.03,214.02,353.39108108]
[1733869533468,7.67e-05,214.03,214.02,338.39108108]
[1733869533661,7.67e-05,214.03,214.02,353.39108108]
[1733869534477,0.2652,214.19,214.02,353.39108108]
[1733869534478,0.2652,214.19,214.09,20.0]
[1733869534682,0.2652,214.19,214.13,20.0]
[1733869535994,24.042084,214.19,214.13,20.0]
[1733869536783,24.042084,214.19,214.1,0.70026123]
[1733869536784,0.12549,214.17,214.07,0.70027629]
[1733869537475,0.12549,214.17,214.07,9.99299031]
[1733869537683,0.12549,214.17,214.1,312.0]
[1733869542805,0.12549,214.17,214.11,0.70038535]
[1733869543796,0.12549,214.17,214.1,0.70031388]
[1733869544178,0.12549,214.17,214.12,9.29271402]
[1733869544494,23.776884,214.19,214.13,0.70030402]
[1733869544694,23.776884,214.19,214.1,20.0]
[1733869544913,23.776884,214.19,214.12,9.29271402]
[1733869545409,23.776884,214.19,214.12,9.99300281]
[1733869545717,0.2653,214.24,214.12,9.99300281]
[1733869545886,0.25098,214.23,214.14,312.0]
[1733869546509,0.25098,214.23,214.12,9.29271402]
[1733869546684,0.12549,214.22,214.13,0.70024383]
[1733869548693,0.12549,214.22,214.14,29.29271402]
[1733869549001,0.12549,214.23,214.15,0.70016263]
[1733869549385,0.25098,214.23,214.19,312.0]
[1733869549901,0.12549,214.23,214.19,312.0]
[1733869550997,0.25098,214.23,214.19,312.0]
[1733869551998,23.776884,214.24,214.19,312.0]
[1733869552309,0.5550767,214.25,214.14,20.0]
[1733869552509,0.5550767,214.25,214.16,29.29271402]
[1733869552712,0.5550767,214.25,214.17,0.70010809]
[1733869554715,0.5550767,214.25,214.17,22.27640809]
[1733869554890,0.5550767,214.25,214.21,9.29271402]
[1733869555093,0.5550767,214.25,214.2,9.29271402]
[1733869555284,0.5550767,214.25,214.24,312.0]
[1733869556700,24.5829407,214.25,214.17,1.5763]
[1733869556897,23.776884,214.24,214.18,29.29271402]
[1733869557320,23.776884,214.24,214.18,20.0]
[1733869557528,23.776884,214.24,214.2,20.0]
[1733869559417,23.776884,214.24,214.17,2.27640293]
[1733869559615,23.776884,214.24,214.18,9.29271402]
[1733869559817,23.776884,214.24,214.2,312.0]
[1733869560209,0.37647,214.23,214.2,312.0]
[1733869560408,0.37647,214.23,214.15,9.29271402]
[1733869560724,0.37647,214.23,214.14,3.44124178]
[1733869560899,0.37647,214.23,214.15,9.29271402]
[1733869561095,0.37647,214.23,214.14,0.70019843]
[1733869562026,0.37647,214.23,214.13,9.29271402]
[1733869563396,0.37647,214.23,214.16,312.0]
[1733869563916,0.37647,214.23,214.11,9.29271402]
[1733869564414,0.37647,214.23,214.12,20.0]
[1733869564714,0.37647,214.23,214.1,9.29271402]
[1733869564905,0.12549,214.2,214.1,9.29271402]
[1733869565295,0.12549,214.2,214.08,0.70037035]
[1733869565296,0.12549,214.2,214.09,9.29271402]
[1733869566319,0.12549,214.2,214.07,21.5914]
[1733869566502,0.12549,214.2,214.09,9.29271402]
[1733869566920,0.12549,214.2,214.11,312.0]
[1733869571534,0.12549,214.2,214.09,9.29271402]
[1733869572036,0.12549,214.2,214.09,20.0]
[1733869572236,0.12549,214.17,214.02,11.58453136]
[1733869572537,0.12549,214.14,214.02,10.88411402]
[1733869574523,0.12549,214.14,214.03,312.0]
[1733869575342,0.12549,214.14,214.03,321.29271402]
[1733869578749,0.12549,214.14,214.03,9.29271402]
[1733869580543,0.12549,214.14,214.02,4.40261547]
[1733869580544,0.12549,214.14,214.02,30.88411402]
[1733869581224,0.12549,214.14,214.03,20.0]
[1733869581641,0.12549,214.14,214.04,312.0]
[1733869587039,0.12549,214.14,214.03,20.0]
[1733869587234,0.12549,214.14,214.02,30.88411402]
[1733869587438,0.12549,214.14,214.04,9.29271402]
[1733869587636,0.2653,214.15,214.04,9.29271402]
[1733869587835,0.2653,214.15,214.07,9.29271402]
[1733869588035,1.88829828,214.21,214.04,0.70058991]
[1733869588036,0.2653,214.2,214.08,9.29271402]
[1733869588238,0.2653,214.2,214.09,9.29271402]
[1733869588573,0.25098,214.19,214.09,9.29271402]
[1733869589642,0.2653,214.2,214.09,9.29271402]
[1733869590046,0.25098,214.19,214.11,312.0]
[1733869590655,0.25098,214.19,214.11,321.29271402]
[1733869591042,0.12549,214.18,214.11,321.29271402]
[1733869592066,0.12549,214.18,214.11,312.0]
[1733869593629,0.12549,214.18,214.11,321.29271402]
[1733869593833,0.12549,214.18,214.12,0.70033585]
[1733869594165,0.25098,214.19,214.12,0.70033585]
[1733869594467,0.25098,214.19,214.1,9.29271402]
[1733869594651,0.12549,214.18,214.1,9.29271402]
[1733869594852,0.12549,214.18,214.11,0.70035453]
[1733869597160,0.12549,214.18,214.13,312.0]
[1733869600261,0.12549,214.18,214.12,20.0]
[1733869600854,0.12549,214.18,214.08,9.99312016]
[1733869600855,0.12549,214.18,214.11,20.0]
[1733869601055,0.12549,214.17,214.11,20.0]
[1733869602738,0.37647,214.19,214.11,20.0]
[1733869602961,24.153354,214.19,214.11,20.0]
[1733869603355,24.153354,214.19,214.12,312.0]
[1733869606346,24.153354,214.19,214.08,9.29271402]
[1733869609077,24.153354,214.19,214.09,20.0]
[1733869609454,24.153354,214.19,214.09,332.0]
[1733869609654,24.153354,214.19,214.06,20.0]
[1733869610044,24.153354,214.19,214.06,29.99327758]
[1733869610672,24.153354,214.19,214.06,20.70056356]
[1733869610874,0.37647,214.17,214.08,20.0]
[1733869611061,24.153354,214.17,214.08,20.0]
[1733869611267,0.37647,214.15,214.08,20.0]
[1733869611455,24.153354,214.15,214.05,0.70051688]
[1733869611651,0.25098,214.13,214.04,29.29271402]
[1733869611975,0.12549,214.12,214.04,29.29271402]
[1733869612651,0.2653,214.2,214.09,312.0]
[1733869612857,0.2653,214.2,214.09,321.29271402]
[1733869613158,0.25098,214.19,214.09,9.29271402]
[1733869613759,0.12549,214.19,214.09,9.29271402]
[1733869613984,0.25098,214.19,214.09,9.29271402]
[1733869614172,0.12549,214.17,214.09,9.29271402]
[1733869616060,0.12549,214.17,214.15,312.0]
[1733869619377,0.12549,214.18,214.09,9.29271402]
[1733869619677,20.0,214.22,214.12,9.29271402]
[1733869620195,0.25098,214.21,214.12,9.29271402]
[1733869620673,0.12549,214.2,214.12,9.29271402]
[1733869620880,20.0,214.23,214.13,0.7003029]
[1733869621378,0.5550767,214.25,214.17,20.0]
[1733869621578,0.5550767,214.25,214.18,9.99283841]
[1733869622079,0.5550767,214.25,214.19,9.29271402]
[1733869622378,0.5550767,214.25,214.24,312.0]
[1733869623789,0.5550767,214.25,214.2,9.29271402]
[1733869624579,0.5550767,214.25,214.21,9.29271402]
[1733869626290,0.5550767,214.25,214.2,20.0]
[1733869626765,0.5550767,214.25,214.24,312.0]
[1733869628970,0.5550767,214.25,214.24,321.29271402]
[1733869629596,0.5550767,214.25,214.24,312.0]
[1733869629900,0.5550767,214.25,214.24,321.29271402]
[1733869632091,0.2653,214.4,214.32,9.29271402]
[1733869632598,0.12549,214.39,214.32,9.29271402]
[1733869632772,0.2653,214.4,214.33,6.5413]
[1733869633283,24.042184,214.4,214.33,6.5413]
[1733869634200,0.12549,214.37,214.33,6.5413]
[1733869634401,0.12549,214.37,214.28,20.0]
[1733869634602,0.12549,214.37,214.29,18.681982]
[1733869635507,0.12549,214.37,214.29,330.681982]
[1733869635713,0.12549,214.37,214.29,312.0]
[1733869637683,0.12549,214.37,214.2,7.9652]
[1733869637886,0.12549,214.35,214.25,18.686138]
[1733869638078,0.12549,214.35,214.22,9.29271402]
[1733869638508,0.12549,214.35,214.23,9.292714]
[1733869640593,0.12549,214.32,214.23,312.0]
[1733869644214,0.25098,214.31,214.23,312.0]
[1733869644593,0.12549,214.3,214.23,312.0]
[1733869647224,0.12549,214.3,214.19,27.98370102]
[1733869650090,0.12549,214.3,214.21,312.0]
[1733869654622,0.12549,214.3,214.18,27.98422502]
[1733869655304,0.12549,214.3,214.19,9.29271402]
[1733869657407,0.12549,214.3,214.21,312.0]
[1733869659339,0.12549,214.23,214.1,13.69006311]
[1733869659501,0.12549,214.23,214.12,18.696788]
[1733869660871,0.12549,214.23,214.1,1.6353]
[1733869661126,0.12549,214.23,214.12,20.0]
[1733869661514,0.12549,214.23,214.11,18.696788]
[1733869661515,0.12549,214.2,214.11,18.696788]
[1733869661722,0.12549,214.2,214.07,9.29271402]
[1733869661914,0.12549,214.2,214.1,18.696788]
[1733869662114,0.12549,214.2,214.07,9.29271402]
[1733869662322,0.12549,214.2,214.12,312.0]
[1733869663721,0.12549,214.18,214.05,10.92801402]
[1733869663910,0.12549,214.18,214.05,1.6353]
[1733869664114,0.12549,214.18,214.07,18.70235]
[1733869664521,0.12549,214.18,214.05,1.6353]
[1733869664952,0.12549,214.18,214.06,18.70235]
[1733869665628,0.12549,214.16,214.06,18.70235]
[1733869666024,0.12549,214.16,214.05,1.6353]
[1733869666226,0.12549,214.16,214.05,20.33765]
[1733869666652,0.12549,214.16,214.08,312.0]
[1733869670744,0.42553192,214.15,214.08,312.0]
[1733869670952,24.153354,214.14,214.08,312.0]
[1733869671127,0.37647,214.14,214.08,312.0]
[1733869671324,0.25098,214.12,214.08,312.0]
[1733869671546,24.027864,214.12,214.08,312.0]
[1733869672134,24.027864,214.12,214.05,29.63036402]
[1733869674749,24.027864,214.12,214.05,10.92801402]
[1733869675155,24.027864,214.12,214.08,312.0]
[1733869678346,24.027864,214.12,214.05,9.29271402]
[1733869678556,24.027864,214.12,214.04,27.99678102]
[1733869681251,24.027864,214.12,214.06,312.0]
[1733869688680,24.027864,214.12,214.05,9.29271402]
[1733869691650,23.776884,214.15,214.07,321.29271402]
[1733869691847,6.4801,214.18,214.08,9.29271402]
[1733869691848,23.776884,214.17,214.08,9.29271402]
[1733869692585,23.776884,214.17,214.09,9.29271402]
[1733869692773,0.25098,214.16,214.09,9.29271402]
[1733869692967,0.25098,214.16,214.08,9.29271402]
[1733869693371,0.25098,214.16,214.09,9.29271402]
[1733869694707,23.776884,214.17,214.1,9.29271402]
[1733869695208,23.776884,214.17,214.12,312.0]
[1733869700587,0.12549,214.19,214.12,312.0]
[1733869700984,24.027864,214.2,214.09,9.29271402]
[1733869701598,0.8202,214.26,214.16,9.29271402]
[1733869701912,0.8202,214.26,214.17,9.29271402]
[1733869702093,0.8202,214.26,214.16,9.29271402]
[1733869703017,0.37647,214.25,214.16,9.29271402]
[1733869703514,24.153354,214.25,214.16,9.29271402]
[1733869703884,24.153354,214.25,214.18,312.0]
[1733869704497,0.8202,214.26,214.18,321.29271402]
[1733869704815,0.8202,214.31,214.19,9.29271402]
[1733869705014,0.25098,214.3,214.19,9.29271402]
[1733869705316,0.8202,214.31,214.19,9.29271402]
[1733869705517,0.8202,214.31,214.16,2.31373285]
[1733869705518,0.8202,214.31,214.21,9.29271402]
[1733869705951,0.8202,214.31,214.2,9.29271402]
[1733869706087,0.25098,214.3,214.2,9.29271402]
[1733869707589,0.25098,214.3,214.23,312.0]
[1733869710512,0.25098,214.3,214.18,9.29271402]
[1733869710841,0.12549,214.29,214.18,20.0]
[1733869711013,0.12549,214.29,214.19,9.29271402]
[1733869711213,0.12549,214.29,214.18,29.29271402]